{"text_format":"1","workbook":"xlsx","n_sheets":6,"sheets":["Informe Bimestral Desgloce","44","Hoja2","Informe Estadistico (1-2)","Informe Estadistico (2-2)","clasificacion de obligaciones "],"not_rendered":{"charts":0,"images":2,"macros":1,"external_links":0,"defined_names":5,"comments":0,"pivot_tables":0},"unopened":[],"bounds":{"document_bytes":16777216,"sheet_cells":100000,"rows_first":2000,"rows_last":500,"rows_between":2000,"halvings":0,"cell_chars":16384,"cell_head_chars":4096},"cells_cut":0,"cells_raw":0,"read":"whole","date_system":"1900"}

{"sheet":"Informe Bimestral Desgloce","index":0,"n_rows":13,"n_cols":17,"rows_kept":13,"cut":false,"hidden":false,"merged":[[1,2,4,13],[11,10,11,12],[11,6,11,9],[6,11,7,13],[5,11,5,13],[5,8,5,9],[6,8,7,9],[6,10,7,10],[6,1,7,5],[6,6,7,7],[5,1,5,5],[5,6,5,7],[9,8,9,9]]}
[null,null,"INFORME BIMESTRAL PRESENTADO POR LOS SUJETOS OBLIGADOS DEL ESTADO DE NAYARIT"]
[null,null,{"$f":"CONCATENATE(\"Con fundamento en los Artículo 122, de la Ley de Transparencia y Acceso a la Información Pública del Estado de Nayarit, me permito remitir el \",G7, \" en el cual se\",(IF(Q11=1,\"  desglosa \",\"  desglosan \")),Q11,(IF(Q11=1,\" Solicitud \",\" Solicitudes \")), \"de información presentada ante la Unidad de Transparencia del \",B7, \" del periodo comprendido del \",I7,  \" del ejercicio \",K7,\".\")","v":"Con fundamento en los Artículo 122, de la Ley de Transparencia y Acceso a la Información Pública del Estado de Nayarit, me permito remitir el  en el cual se  desglosan 0 Solicitudes de información presentada ante la Unidad de Transparencia del  del periodo comprendido del Porfavor Seleccione el Bimestre a Presentar del ejercicio ."}]
[]
[]
[]
[null,"Nombre del Sujeto Obligado",null,null,null,null,"Bimestre a Presentar",null,"Periodo",null,"Ejercicio","Fecha de Ultima Modificación"]
[null,null,null,null,null,null,null,null,{"$f":"IF(G7=\"1er. Informe Bimestral\",\"01 de enero al 29 de febrero\",IF(G7=\"2do. Informe Bimestral\",\"01 de marzo al 30 de abril\",IF(G7=\"3er. Informe Bimestral\",\"01 de mayo al 30 de junio\",IF(G7=\"4to. Informe Bimestral\",\"01 de julio al 31 de agosto\",IF(G7=\"5to. Informe Bimestral\",\"01 de septiembre al 31 de octubre\",IF(G7=\"6to. Informe Bimestral\",\"01 de noviembre al 31 de diciembre\",IF(G7=\"Informe Anual\",\"01 de enero al 31 de diciembre\",\"Porfavor Seleccione el Bimestre a Presentar\")))))))","v":"Porfavor Seleccione el Bimestre a Presentar"},null,null,{"$f":"TODAY()","v":"2024-04-01"}]
[]
[]
[null,null,null,"Desgloce de Solicitdes de Informacion Recibidas (Solicitudes ARCO y Acceso a la Información)",null,null,null,null,"Total de Solicitudes Acceso a la Infomación Pública:",null,{"$f":"COUNTIF(Desgloce[Tipo de Solicitud],\"Acceso a la Infomación Pública\")","v":0},"Total de Solicitudes Registradas DP:",{"$f":"COUNTIF(Desgloce[Tipo de Solicitud],\"Derechos ARCO\")","v":0},{"$f":"IF(AND(M10=0,K10=0),\"Registra el total de solicitudes descritas en la tabla\",\"\")","v":"Registra el total de solicitudes descritas en la tabla"}]
[null,null,null,null,null,null,null,null,null,null,null,null,null,null,null,null,{"$f":"K10+M10","v":0}]
[null,null,null,null,null,null,"Tramite",null,null,null,"Datos del Solicitante"]
[null,"No.","Folio","Medio de Presentacion","Tipo de Solicitud","Informacion Solicitada","Recepcion","Respuesta","Duracion","Modalidad de Respuesta","Nombre del solicitante","Tipo de Solicitante","Genero del Solicitante","Sentido en que se emite la respuesta"]

{"sheet":"44","index":1,"n_rows":60,"n_cols":1,"rows_kept":60,"cut":false,"hidden":true,"merged":[]}
["Obligacion de transparencia "]
["Marco normativo"]
["Estructura orgánica"]
["Funciones de cada área"]
["Metas y objetivos"]
["Indicadores relacionados cpn temas de interés público o trascendencia social"]
["Indicadores que permitan rendir cuentas de sus objetivos y resultados"]
["Directorio de servidores públicos"]
["Remuneraciones del personal"]
["Gastos de representación y víaticos"]
["Pazas de base, confianza y/o plazas vacantes"]
["Contratacion de servicios profesionales por honorarios"]
["Versiones públicas de las declaraciones patrimoniales de los servidores públicos"]
["Domicilio y dirección electronica de la unidad de transparencia"]
["Convocatoria a concursos para ocupar cargos públicos"]
["Informacion de los programas  de subsidios, estimulos y apoyos "]
["Condiciones generales de trabajo, contratos o convenios que regules las relaciones laborales del personal de base y/o confianza"]
["Recursos públicos económicos en especie o donativos que sean entregados a los sindicatos"]
["Información curricular de los servidores públicos"]
["Servidores públicos sancionados"]
["Servicios que se ofrecen"]
["Tramites, requisitos y formatos que se ofrecen"]
["Presupuesto asignado e informes del ejercicio trimestral del gasto"]
["Informacion relativa a la deuda pública"]
["Montos designados a comunicación social y publicidad"]
["Informes de resultados de auditorias"]
["Resultados de dictaminación de estados financieros"]
["Montos, criterios, convocatorias del listado de personas fisicas o morales que tengan asignado recursos públicos"]
["Concesiones, contratos, convenios, permisos, licencias o autorizaciones otorgados "]
["Resultados de los procesos de adjudicaciones directas,invitaciones restringidad y licitaciones "]
["Informes que generen los sujetos obligados"]
["Estadisticas que generen en cumplimiento de sus facultades, competencias  o funciones"]
["Avances prográmaticos o presupuestales, balances generales y su estado financiero"]
["Padrón de proveedores y contratistas"]
["Convenios de coordinación de concertación con los sectores social y privado"]
["Inventario de bienes muebles e inmuebles en posesión y propiedad"]
["Recomendaciones emitidas por organismos de derechos humanos"]
["Resoluciones y laudos"]
["Mecanismos de participación ciudadana"]
["Programas ofrecidos"]
["Actas y resoluciones del Comité de Transparencia "]
["Evaluaciones y encuentas realizadas por los sujetos obligados a programas financiados con recurso público"]
["Estudios financiados con recurso público"]
["Listado de jubilados y pensionados y los montos que reciben"]
["Ingresos recibidos por cualquier concepto señalando el nombre de quines lo reciben, administran y ejercen"]
["Donaciones hechas a terceros en dinero o en especie "]
["Catálogos de disposición y guía de archivo documental "]
["Actas de sesiones ordinarias y estraordinarias de los conejos consultivos, así como opiniones y recomendaciones que emitan"]
["Listado de solicitudes y proveedores de servicios o aplicaciones de internet para la intervención de comunicaciones privadas"]
["Otros"]
["No Aplica"]
["Facultades y Competencias"]
["Estructura Organica"]
["Indicadores, Evaluación y Estudios Utilizados para Rendir Cuentas"]
["Condiciones Laborales de los Integrantes del Sujeto Obligado"]
["Información Financiera, Administración y Ejercicio de los Recursos Asignados"]
["Funciones y Actividades"]
["Recomendaciónes Emitidas por Organismos Públicos Garantes de Derechos humanos"]
["Mecanismos de Participación Ciudadana "]
["Actividades de la Unidad de Transparencia y Comité de Transparencia"]

{"sheet":"Hoja2","index":2,"n_rows":23,"n_cols":5,"rows_kept":23,"cut":false,"hidden":true,"merged":[]}
["Medio de Presentacion",null,"Tipo de Solicitante",null,"Tipo de Solicitud"]
["Personal/Escrito",null,"Persona Fisica",null,"Acceso a la Infomación Pública"]
["Correo Electrónico",null,"Persona Moral",null,"Derechos ARCO"]
["Sistema PNT",null,"No Disponible"]
[null,null,null,null,"Informacion Solicitada"]
["Modalidad de Respuesta",null,"Genero del Solicitante",null,"Obligaciones de transparencia (SAI)"]
["Medios electrónicos",null,"Femenino",null,"Acceso a la Informacion (SAI)"]
["Copia simple",null,"Masculino",null,"No Competencia (SAI)"]
["Consulta directa",null,"No Binario",null,"Prueba (Capacitacion)(SAI)"]
["Copia certificada",null,"No disponible",null,"Generado por el OG (SAI)"]
["Mixta",null,null,null,"Portabilidad (Derechos ARCOP)"]
[null,null,null,null,"Rectificación (Derechos ARCOP)"]
["Respuesta",null,null,null,"Opisición (Derechos ARCOP)"]
["Informacion total",null,null,null,"Cancelación  (Derechos ARCOP)"]
["Informacion parcial",null,null,null,"Acceso  (Derechos ARCOP)"]
["Negada por Reserva"]
["Inexistencia de la Informacion"]
["Prevencion no Desahogada"]
["No Competencia / Orientada"]
["En Tramite"]
["Negada por no ser Titular de los Datos Personales"]
["Prueba (Capacitacion)"]
["Generado por el Organo Garante"]

{"sheet":"Informe Estadistico (1-2)","index":3,"n_rows":77,"n_cols":3,"rows_kept":77,"cut":false,"hidden":false,"merged":[[33,1,34,1],[45,1,46,1],[52,1,53,1],[65,1,66,1],[18,1,19,1],[23,1,24,1],[13,1,14,1],[29,1,30,1],[1,1,1,2],[2,1,2,2],[7,1,9,2],[11,1,12,1],[11,2,12,2]]}
[]
[null,"Nombre del Sujeto Obligado"]
[null,{"$f":"'Informe Bimestral Desgloce'!B7","v":0}]
[null,"Bismestre a Presentar:",{"$f":"'Informe Bimestral Desgloce'!G7","v":0}]
[null,"Periodo:",{"$f":"'Informe Bimestral Desgloce'!I7","v":"Porfavor Seleccione el Bimestre a Presentar"}]
[null,"Ejercicio:",{"$f":"'Informe Bimestral Desgloce'!K7","v":0}]
[]
[null,{"$f":"IF(C55=\"\",\"Para completar esta sección debera completar el apartado de Obligaciones Solicitadas\"&\", en el caso de que alguno de los supuestos no cuente con solicitudes  debera completar el campo con \"\"0\"\" y el total de solicitudes para el apartado debera ser igual al resto de totales.\",IF(C57=\"\",\"Para completar esta sección debera completar el apartado de Obligaciones Solicitadas\"&\", en el caso de que alguno de los supuestos no cuente con solicitudes  debera completar el campo con \"\"0\"\" y el total de solicitudes para el apartado debera ser igual al resto de totales.\",IF(C58=\"\",\"Para completar esta sección debera completar el apartado de Obligaciones Solicitadas\"&\", en el caso de que alguno de los supuestos no cuente con solicitudes  debera completar el campo con \"\"0\"\" y el total de solicitudes para el apartado debera ser igual al resto de totales.\",IF(C59=\"\",\"Para completar esta sección debera completar el apartado de Obligaciones Solicitadas\"&\", en el caso de que alguno de los supuestos no cuente con solicitudes  debera completar el campo con \"\"0\"\" y el total de solicitudes para el apartado debera ser igual al resto de totales.\",IF(C60=\"\",\"Para completar esta sección debera completar el apartado de Obligaciones Solicitadas\"&\", en el caso de que alguno de los supuestos no cuente con solicitudes  debera completar el campo con \"\"0\"\" y el total de solicitudes para el apartado debera ser igual al resto de totales.\",IF(C61=\"\",\"Para completar esta sección debera completar el apartado de Obligaciones Solicitadas\"&\", en el caso de que alguno de los supuestos no cuente con solicitudes  debera completar el campo con \"\"0\"\" y el total de solicitudes para el apartado debera ser igual al resto de totales.\",IF(C62=\"\",\"Para completar esta sección debera completar el apartado de Obligaciones Solicitadas\"&\", en el caso de que alguno de los supuestos no cuente con solicitudes  debera completar el campo con \"\"0\"\" y el total de solicitudes para el apartado debera ser igual al resto de totales.\",IF(C63=\"\",\"Para completar esta sección debera completar el apartado de Obligaciones Solicitadas\"&\", en el caso de que alguno de los supuestos no cuente con solicitudes  debera completar el campo con \"\"0\"\" y el total de solicitudes para el apartado debera ser igual al resto de totales.\",IF(C64=\"\",\"Para completar esta sección debera completar el apartado de Obligaciones Solicitadas\"&\", en el caso de que alguno de los supuestos no cuente con solicitudes  debera completar el campo con \"\"0\"\" y el total de solicitudes para el apartado debera ser igual al resto de totales.\",IF(C65=\"\",\"Para completar esta sección debera completar el apartado de Obligaciones Solicitadas\"&\", en el caso de que alguno de los supuestos no cuente con solicitudes  debera completar el campo con \"\"0\"\" y el total de solicitudes para el apartado debera ser igual al resto de totales.\",IF(C54=C15,(CONCATENATE(\"Con fundamento en los Artículo 109, del Reglamento de la Ley de Transparencia y Acceso a la Información Pública del Estado de Nayarit, me permito remitir el \",C4,\" Comprendido del \",C5,\" del ejercicio \",C6,\" del \",B3)),\"Para completar esta sección debera completar el apartado de Obligaciones Solicitadas\"&\", en el caso de que alguno de los supuestos no cuente con solicitudes  debera completar el campo con \"\"0\"\" y el total de solicitudes para el apartado debera ser igual al resto de totales.\")))))))))))","v":"Para completar esta sección debera completar el apartado de Obligaciones Solicitadas, en el caso de que alguno de los supuestos no cuente con solicitudes  debera completar el campo con \"0\" y el total de solicitudes para el apartado debera ser igual al resto de totales."}]
[]
[]
[]
[null,"Solicitudes de Información","Solictudes "]
[]
[null,"Medio de Presentacion","Total"]
[null,null,{"$f":"SUM(C16:C18)","v":0}]
[null,"Personal/Escrito",{"$f":"COUNTIF(Desgloce[Medio de Presentacion],B16)","v":0}]
[null,"Correo Electrónico",{"$f":"COUNTIF(Desgloce[Medio de Presentacion],B17)","v":0}]
[null,"Sistema PNT",{"$f":"COUNTIF(Desgloce[Medio de Presentacion],B18)","v":0}]
[null,"Tipo de Solicitante","Total"]
[null,null,{"$f":"SUM(C21:C23)","v":0}]
[null,"Persona Fisica",{"$f":"COUNTIF(Desgloce[Tipo de Solicitante],B21)","v":0}]
[null,"Persona Moral",{"$f":"COUNTIF(Desgloce[Tipo de Solicitante],B22)","v":0}]
[null,"No Disponible",{"$f":"COUNTIF(Desgloce[Tipo de Solicitante],B23)","v":0}]
[null,"Género del Solicitante","Total"]
[null,null,{"$f":"SUM(C26:C29)","v":0}]
[null,"Femenino",{"$f":"COUNTIF(Desgloce[Genero del Solicitante],B26)","v":0}]
[null,"Masculino",{"$f":"COUNTIF(Desgloce[Genero del Solicitante],B27)","v":0}]
[null,"No Binario",{"$f":"COUNTIF(Desgloce[Genero del Solicitante],B28)","v":0}]
[null,"No disponible",{"$f":"COUNTIF(Desgloce[Genero del Solicitante],B29)","v":0}]
[null,"Tipo de Solitud","Total"]
[null,null,{"$f":"SUM(C32:C33)","v":0}]
[null,"Acceso a la Infomación Pública",{"$f":"COUNTIF(Desgloce[Tipo de Solicitud],B32)","v":0}]
[null,"Derechos ARCO",{"$f":"COUNTIF(Desgloce[Tipo de Solicitud],B33)","v":0}]
[null,"Información Solicitada","Total"]
[null,null,{"$f":"SUM(C36:C45)","v":0}]
[null,"Obligaciones de transparencia (SAI)",{"$f":"COUNTIF(Desgloce[Informacion Solicitada],B36)","v":0}]
[null,"Acceso a la Informacion (SAI)",{"$f":"COUNTIF(Desgloce[Informacion Solicitada],B37)","v":0}]
[null,"No Competencia (SAI)",{"$f":"COUNTIF(Desgloce[Informacion Solicitada],B38)","v":0}]
[null,"Prueba (Capacitacion)(SAI)",{"$f":"COUNTIF(Desgloce[Informacion Solicitada],B39)","v":0}]
[null,"Generado por el OG (SAI)",{"$f":"COUNTIF(Desgloce[Informacion Solicitada],B40)","v":0}]
[null,"Portabilidad (Derechos ARCOP)",{"$f":"COUNTIF(Desgloce[Informacion Solicitada],B41)","v":0}]
[null,"Rectificación (Derechos ARCOP)",{"$f":"COUNTIF(Desgloce[Informacion Solicitada],B42)","v":0}]
[null,"Opisición (Derechos ARCOP)",{"$f":"COUNTIF(Desgloce[Informacion Solicitada],B43)","v":0}]
[null,"Cancelación  (Derechos ARCOP)",{"$f":"COUNTIF(Desgloce[Informacion Solicitada],B44)","v":0}]
[null,"Acceso  (Derechos ARCOP)",{"$f":"COUNTIF(Desgloce[Informacion Solicitada],B45)","v":0}]
[null,"Modalidad de Respuesta","Total"]
[null,null,{"$f":"SUM(C48:C52)","v":0}]
[null,"Medios electrónicos",{"$f":"COUNTIF(Desgloce[Modalidad de Respuesta],B48)","v":0}]
[null,"Copia simple",{"$f":"COUNTIF(Desgloce[Modalidad de Respuesta],B49)","v":0}]
[null,"Consulta directa",{"$f":"COUNTIF(Desgloce[Modalidad de Respuesta],B50)","v":0}]
[null,"Copia certificada",{"$f":"COUNTIF(Desgloce[Modalidad de Respuesta],B51)","v":0}]
[null,"Mixta",{"$f":"COUNTIF(Desgloce[Modalidad de Respuesta],B52)","v":0}]
[null,"Obligaciones Solicitadas","Total"]
[null,null,{"$f":"SUM(C55:C65)","v":0}]
[null,"No Aplica (Autocompletado)",{"$f":"SUM(C39:C45)","v":0}]
[null,"No Completencia (Autocompletado)",{"$f":"C38","v":0}]
[null,"Facultades y Competencias"]
[null,"Estructura Organica"]
[null,"Indicadores, Evaluación y Estudios Utilizados para Rendir Cuentas"]
[null,"Condiciones Laborales de los Integrantes del Sujeto Obligado"]
[null,"Información Financiera, Administración y Ejercicio de los Recursos Asignados"]
[null,"Funciones y Actividades"]
[null,"Recomendaciónes Emitidas por Organismos Públicos Garantes de Derechos humanos"]
[null,"Mecanismos de Participación Ciudadana "]
[null,"Actividades de la Unidad de Transparencia y Comité de Transparencia"]
[null,"Sentido en que se emite la respuesta","Total"]
[null,null,{"$f":"SUM(C68:C77)","v":0}]
[null,"Informacion total",{"$f":"COUNTIF(Desgloce[Sentido en que se emite la respuesta],B68)","v":0}]
[null,"Informacion parcial",{"$f":"COUNTIF(Desgloce[Sentido en que se emite la respuesta],B69)","v":0}]
[null,"Negada por Reserva",{"$f":"COUNTIF(Desgloce[Sentido en que se emite la respuesta],B70)","v":0}]
[null,"Inexistencia de la Informacion",{"$f":"COUNTIF(Desgloce[Sentido en que se emite la respuesta],B71)","v":0}]
[null,"Prevencion no Desahogada",{"$f":"COUNTIF(Desgloce[Sentido en que se emite la respuesta],B72)","v":0}]
[null,"No Competencia / Orientada",{"$f":"COUNTIF(Desgloce[Sentido en que se emite la respuesta],B73)","v":0}]
[null,"En Tramite",{"$f":"COUNTIF(Desgloce[Sentido en que se emite la respuesta],B74)","v":0}]
[null,"Negada por no ser Titular de los Datos Personales",{"$f":"COUNTIF(Desgloce[Sentido en que se emite la respuesta],B75)","v":0}]
[null,"Prueba (Capacitacion)",{"$f":"COUNTIF(Desgloce[Sentido en que se emite la respuesta],B76)","v":0}]
[null,"Generado por el Organo Garante",{"$f":"COUNTIF(Desgloce[Sentido en que se emite la respuesta],B77)","v":0}]

{"sheet":"Informe Estadistico (2-2)","index":4,"n_rows":26,"n_cols":6,"rows_kept":26,"cut":false,"hidden":false,"merged":[[26,1,30,5],[3,1,3,5],[0,0,0,6],[2,0,2,6],[4,1,4,5],[25,1,25,5],[10,1,13,5],[6,3,6,4],[7,3,7,4],[8,3,8,4]]}
["Informe Estadistico de Capacitación"]
[]
["Nombre del Sujeto Obligado"]
[]
[null,{"$f":"'Informe Estadistico (1-2)'!B3","v":0}]
[]
[null,null,"Bismestre a Presentar:",{"$f":"'Informe Estadistico (1-2)'!C4","v":0}]
[null,null,"Periodo:",{"$f":"'Informe Estadistico (1-2)'!C5","v":"Porfavor Seleccione el Bimestre a Presentar"}]
[null,null,"Ejercicio:",{"$f":"'Informe Estadistico (1-2)'!C6","v":0}]
[]
[null,{"$f":"IF(F18=\"\",\"Para completar esta sección deberá completar el apartado de Capacitaciones Recibidas y Capacitaciones Otorgadas,\"&\" en el caso de que en alguno de los supuestos no cuente con capacitaciones deberá completar el campo, Capacitaciones Recibidas y /o Capacitaciones Otorgadas con \"\"0\"\" y el de columnos deberá contener un \"\"-\"\"\",IF(F23=\"\",\"Para completar esta sección deberá completar el apartado de Capacitaciones Recibidas y Capacitaciones Otorgadas,\"&\" en el caso de que en alguno de los supuestos no cuente con capacitaciones deberá completar el campo, Capacitaciones Recibidas y /o Capacitaciones Otorgadas con \"\"0\"\" y el de columnos deberá contener un \"\"-\"\"\",IF(B27=\"\",\"Para completar esta seccion debera señalar las Demas acciones realizadas en Transparencia, Acceso a la Información y de Interés Público, en el caso de no haber realizado actividad alguna, debera colocar la Nota:\"&\" \"\"Para el Periodo a Informar, no se realizaron acciones para este rubro\"\"\",(CONCATENATE(\"Con fundamento en los Artículo 109, del Reglamento de la Ley de Transparencia y Acceso a la Información Pública del Estado de Nayarit, me permito remitir el \",D7,\" Comprendido del \",D8,\" del ejercicio \",D9,\" del \",B5)))))","v":"Para completar esta sección deberá completar el apartado de Capacitaciones Recibidas y Capacitaciones Otorgadas, en el caso de que en alguno de los supuestos no cuente con capacitaciones deberá completar el campo, Capacitaciones Recibidas y /o Capacitaciones Otorgadas con \"0\" y el de columnos deberá contener un \"-\""}]
[]
[]
[]
[]
[]
[null,"No.","Fecha de capacitación ","Tema de Capacitación ","Servidores Públicos ","Capacitaciones recibidas "]
[null,"-","-","-","-"]
[]
[]
[]
[null,"No.","Fecha de capacitación ","Tema de Capacitación ","Servidores Públicos ","Capacitaciones Otorgadas"]
[null,"-","-","-","-"]
[]
[]
[null,"Demas acciones realizadas en Transparencia, Acceso a la Información y de Interés Público que se Realicen:"]

{"sheet":"clasificacion de obligaciones ","index":5,"n_rows":55,"n_cols":2,"rows_kept":55,"cut":false,"hidden":false,"merged":[[48,0,48,1],[50,0,50,1],[52,0,52,1],[1,0,1,1],[7,0,7,1],[12,0,12,1],[16,0,16,1],[22,0,22,1],[41,0,41,1]]}
["Fracción","Información requerida por la fracción"]
["Facultades y competencias"]
["I","El marco normativo aplicable al sujeto obligado"]
["III","Las facultades de cada área"]
["XIX","Los servicios que ofrecen y los programas que administra"]
["XX","Los tramites, requisitos y formatos que ofrecen"]
["XXXIII","Los convenios de coordinación que celebren con la federación, otros estados o municipios…"]
["Estructura Organica"]
["II","Su estructura organica completa"]
["VII","El directorio de todos los servidores públicos"]
["X","El numero total de plazas y del personal de base y confianza"]
["XVIII","El listado de servidores publicos con sanciones administrativas definitivas"]
["Indicadores, evaluaciones y estudios utilizados para rendir cuentas"]
["IV","Las metas y objetivos de las áreas de conformidad con sus programas operativos"]
["V","Los indicadores relacionados con temas de interes público o trascendencia social que conforme a sus funciones deban establecer"]
["VI","Los indicadores que permitan rendir cuentas de sus objetivos y resultados"]
["Condiciones laborales de los integrantes del sujeto obligado"]
["VIII","La remuneracion bruta y neta de todos los servidores publicos de base o de confianza"]
["XI","Las contrataciones de servicios publicos profesionales por honorarios"]
["XII","La informacion en version pública de las declaraciones patrimoniales de los servidores publicos"]
["XLII","El listado de jubilados y pensionados y el monto que reciben "]
["XXXVI","Las resoluciones y laudos que se emitan en procesos o procedimientos en forma de juicio"]
["Información financiera, administracion y ejercicio de los recursos financieros asignados"]
["IX","Los gastos de representacion y viaticos con motivo de su empleo, cargo o comision"]
["XXI","La informacion financiera, presupuesto asignado, la cuenta publica e informes del ejercicio trimestral del gasto"]
["XXII","Instrumentos juridicos relativos a contratacion de financiamiento y obligaciones"]
["XXIII","Los montos destinados a gastos relativos a comunicación social y publicidad oficial"]
["XXIV","Los informes de resultados de las auditorias al ajercicio presupuestal de cada sujeto obligado"]
["XXV","El resultado de la dictaminacion de estados financieros"]
["XXVI","Los montos criterios, convocatorias y listado de personas fisicas o morales que se les asigne o permita usar recurso publico o realicen actos de autoridad"]
["XXVII","Las conseciones, contratos, convenios, permisos, licensias o autorizaciones otorgadas"]
["XXVIII","La información de los resultados sobre procedimientos de adjudicación directa, invitacion restringida y licitacion de cualquier naturaleza"]
["XXXI","Informe de avances programáticos o presupuestales, balances generales y su estado"]
["XXXII","Padron de proveedores y contratistas"]
["XXXIV","El inventario de bienes muebles e inmuebles en posesion y propiedad"]
["XXXVIII","Los programas que ofrecen "]
["XL","Todas las evaluaciones y encuestas que hagan los sujetos obligados a programas financiados con recursos públicos "]
["XLI","Los estudios financiados con recursos publicos "]
["XLIII","Los ingresos recibidos por cualquier concepto"]
["XLIV","Donaciones hechas a terceros en dinero o en especie "]
["XLVIII","Seguiiento de las obligaciones de responsabilidad hacendarias"]
["Funciones y actividades"]
["XXIX","Los informes que por disposicion legal generen los sujetos obligados, el area responsable y el fundamento legal que los obligue a su generacion"]
["XXX","Las estadisticas que generel en cumplimientos de sus facultades, competencias o funciones con la mayor desagregacion posible "]
["XLV","El catalogo de disposicion y guia de archivo documental"]
["XLVI","Las actas de sesiones ordinarias y extraordinarias, asi como opiniones que emitan, en su caso los consejos consultivos"]
["XLVII","Intervencion de comunicaciones privadas y localizacion geografica de equipos"]
["XLIX","Información que considere relevante"]
["Recomendaciones emitidas por organismos publicos garantes de derechos humanos"]
["XXXV","Las recomencadiones emitidas por los organos publicos garantes de derechos humanos"]
["Mecanismos de participacion ciudadana"]
["XXXVII","Los mecanismos de participacion ciudadana "]
["Actividades de la Unidad de Transparencia y Comité de Transparencia"]
["XXXIX","Las actas y resoluciones del Comité de transparencia de los sujetos obligados "]
["Ultimo Parrafo","Tabla de aplicabilidad "]